bitfinex/quotes_ETHUSD_20251215
["timestamp","ask_amount","ask_price","bid_price","bid_amount"]
[1765815881736,0.5445,3012.1,3012.0,0.002]
[1765815882045,3.86444289,3012.1,3012.0,0.002]
[1765815882380,15.76217318,3012.1,3012.0,0.002]
[1765815883222,34.85042218,3012.1,3012.0,0.002]
[1765815883423,9.518644,3011.7,3010.8,0.002]
[1765815883615,0.191,3010.9,3010.8,0.002]
[1765815884233,0.1863,3011.2,3010.8,0.002]
[1765815885134,0.03987572,3011.7,3010.8,0.002]
[1765815885135,3.97903503,3011.6,3010.8,0.002]
[1765815885304,0.58047529,3011.5,3010.8,0.002]
[1765815885505,1.05267529,3011.5,3010.8,0.002]
[1765815885906,0.4722,3011.5,3010.8,0.002]
[1765815886640,3.79280979,3011.5,3010.8,0.002]
[1765815886942,0.4722,3011.5,3010.8,0.002]
[1765815887122,3.79284202,3011.5,3010.8,0.002]
[1765815887310,0.4722,3011.5,3010.8,0.002]
[1765815887744,0.1863,3011.6,3011.0,6.64231152]
[1765815887945,0.1863,3011.6,3011.0,11.00713709]
[1765815888152,0.1863,3011.6,3011.0,3.32115576]
[1765815888455,0.6585,3011.6,3011.0,3.32115576]
[1765815888629,0.6585,3011.6,3011.0,6.64231152]
[1765815888949,0.6585,3011.6,3011.0,3.32115576]
[1765815889349,0.6585,3011.6,3011.0,6.64231152]
[1765815889649,3.50680199,3011.6,3011.0,3.32115576]
[1765815889950,0.4722,3011.5,3010.8,0.002]
[1765815890150,0.4722,3011.5,3010.9,0.66469734]
[1765815890355,3.79280444,3011.5,3010.8,0.002]
[1765815890514,0.077,3010.9,3010.8,0.002]
[1765815891328,0.1863,3011.6,3010.8,0.002]
[1765815891542,0.4722,3011.5,3010.8,0.002]
[1765815891942,0.077,3010.9,3010.8,0.002]
[1765815892108,34.38424535,3010.9,3010.8,0.002]
[1765815892443,0.58047529,3010.6,3010.3,0.002]
[1765815892619,5.381666,3010.4,3010.3,0.002]
[1765815892823,2.700814,3010.4,3010.3,0.002]
[1765815893025,3.426055,3010.4,3010.3,0.002]
[1765815893543,0.5412,3010.4,3010.3,0.002]
[1765815893732,0.606,3010.4,3010.3,0.002]
[1765815894528,0.533,3010.4,3010.3,0.002]
[1765815894733,0.61,3010.4,3010.3,0.002]
[1765815895441,1.0743,3010.4,3010.3,0.002]
[1765815895844,23.14967169,3010.4,3010.3,0.002]
[1765815896339,20.01288669,3010.4,3010.3,0.002]
[1765815896540,16.68059869,3010.4,3010.3,0.002]
[1765815896743,7.68497569,3010.4,3010.3,0.002]
[1765815896924,18.67738269,3010.4,3010.3,0.002]
[1765815897123,18.34487069,3010.4,3010.3,0.002]
[1765815897321,18.38474641,3010.4,3010.3,0.002]
[1765815897724,16.83725841,3010.4,3010.3,0.002]
[1765815897925,17.01281341,3010.4,3010.3,0.002]
[1765815898952,38.9229727,3010.4,3010.3,0.002]
[1765815899157,39.2563495,3010.4,3010.3,0.002]
[1765815899355,39.43252122,3010.4,3010.3,0.002]
[1765815899914,38.7233495,3010.4,3010.3,0.002]
[1765815900216,39.2563495,3010.4,3010.3,0.002]
[1765815900440,15.5174387,3010.4,3010.3,0.002]
[1765815900644,10.31984869,3010.4,3010.3,0.002]
[1765815900861,4.97659298,3010.4,3010.3,0.002]
[1765815901018,22.9197767,3010.4,3010.3,0.002]
[1765815901720,16.1161767,3010.4,3010.3,0.002]
[1765815901959,27.0269377,3010.4,3010.3,0.002]
[1765815902122,23.6318037,3010.4,3010.3,0.002]
[1765815902324,23.0988037,3010.4,3010.3,0.002]
[1765815902531,11.1232007,3010.4,3010.3,0.002]
[1765815902917,35.4219727,3010.4,3010.3,0.002]
[1765815903318,8.0556167,3010.4,3010.3,0.002]
[1765815903950,11.4378187,3010.4,3010.3,0.002]
[1765815904328,7.53552572,3010.4,3010.3,0.002]
[1765815904535,7.49565,3010.4,3010.3,0.002]
[1765815904741,0.61,3010.4,3010.3,0.002]
[1765815904989,0.6092,3010.4,3010.3,0.002]
[1765815905556,3.32108367,3011.1,3010.3,0.002]
[1765815905557,3.32096092,3011.2,3010.3,0.002]
[1765815905756,0.533,3011.1,3010.4,0.4957]
[1765815905951,0.533,3011.0,3010.4,0.4957]
[1765815906397,0.533,3011.0,3010.9,0.4758]
[1765815906850,0.533,3011.0,3010.4,0.4957]
[1765815907056,0.533,3011.0,3010.5,6.6434147]
[1765815907393,0.533,3011.0,3010.5,3.32170735]
[1765815907569,0.9861,3011.0,3010.5,6.6434147]
[1765815907768,0.533,3011.0,3010.5,6.6434147]
[1765815908284,0.9861,3011.0,3010.5,3.32170735]
[1765815908483,0.9861,3011.0,3010.5,6.6434147]
[1765815908661,0.9861,3011.0,3010.5,7.30795617]
[1765815908862,0.9861,3011.0,3010.4,3.32181056]
[1765815908863,0.0959,3010.6,3010.4,3.32181056]
[1765815909062,0.001,3010.4,3010.3,0.002]
[1765815909269,0.533,3010.5,3010.3,0.002]
[1765815909885,0.58047529,3011.2,3010.4,0.4758]
[1765815910086,0.533,3011.1,3010.4,0.4758]
[1765815911101,0.9861,3011.1,3010.3,0.002]
[1765815911303,0.9861,3011.1,3010.4,0.66460768]
[1765815911662,0.9861,3011.1,3010.3,0.002]
[1765815911663,0.0959,3010.5,3010.3,0.002]
[1765815911863,0.6289,3010.5,3010.3,0.002]
[1765815912356,0.533,3010.5,3010.3,0.4977]
[1765815912567,0.001,3011.5,3010.5,0.405504]
[1765815912822,0.533,3011.4,3010.4,0.4758]
[1765815913108,0.533,3011.4,3010.7,9.96446007]
[1765815913309,0.533,3011.4,3010.8,0.9997676]
[1765815913493,0.001,3011.5,3011.3,0.6749]
[1765815913799,0.001,3011.5,3011.4,0.91451114]
[1765815913992,0.001,3011.5,3011.4,1.377004]
[1765815914299,0.001,3012.8,3011.4,8.97732672]
[1765815914508,0.533,3012.7,3011.9,0.4758]
[1765815915007,0.4541,3012.8,3012.6,0.1991]
[1765815915008,0.001,3012.8,3012.6,0.1991]
[1765815915378,0.4924,3012.7,3012.0,9.96015936]
[1765815915579,0.001,3012.8,3012.0,9.96015936]
[1765815915779,0.001,3012.8,3012.1,1.49171594]
[1765815915979,0.001,3012.8,3012.2,0.4957]
[1765815916383,0.001,3012.8,3012.1,0.99601594]
[1765815916585,0.4541,3012.8,3012.0,6.64010624]
[1765815916800,0.001,3012.8,3012.0,6.64010624]
[1765815917004,0.533,3012.7,3012.2,6.63966536]
[1765815917214,0.001,3012.8,3012.3,0.98597929]
[1765815917420,0.001,3012.8,3012.7,0.4758]
[1765815917578,0.001,3012.8,3012.7,0.9715]
[1765815918498,0.001,3012.8,3012.3,0.98597929]
[1765815918699,0.001,3012.8,3012.3,1.39260976]
[1765815918899,0.001,3012.8,3012.4,0.52889612]
[1765815919217,0.001,3012.8,3012.7,3.7950817]
[1765815919517,0.001,3012.8,3012.7,3.3192817]
[1765815920084,0.5501,3012.8,3011.7,0.6948]
[1765815920391,0.0045,3012.4,3011.8,3.34025614]
[1765815920596,0.533,3012.3,3011.8,3.32025614]
[1765815921113,0.533,3012.3,3011.9,0.52890163]
[1765815921283,0.533,3012.3,3011.9,0.4957]
[1765815921482,0.533,3012.3,3011.9,1.56126033]
[1765815921890,0.533,3012.5,3012.0,0.4957]
[1765815923093,0.001,3012.8,3012.4,0.4758]
[1765815923296,0.001,3012.8,3012.7,0.4758]
[1765815923691,0.001,3012.8,3012.2,0.901204]
[1765815923879,0.001,3012.8,3012.3,1.08610327]
[1765815924282,0.001,3012.8,3012.3,1.58180327]
[1765815924886,0.001,3012.8,3012.1,9.95982867]
[1765815925105,0.001,3012.8,3012.7,3.7950817]
[1765815925292,0.001,3012.8,3012.7,3.82827451]
[1765815925498,0.001,3012.8,3012.7,4.2907817]
[1765815926407,0.001,3012.8,3012.7,4.6962857]
[1765815926617,0.001,3012.8,3012.7,5.49785315]
[1765815927795,0.001,3012.8,3012.7,3.7950817]
[1765815928204,0.001,3012.8,3012.7,4.6962857]
[1765815928400,0.0002,3012.8,3012.7,4.6962857]
[1765815928710,0.0002,3012.8,3012.7,4.2907817]
[1765815928913,0.0002,3012.8,3012.5,3.31942116]
[1765815929117,0.0002,3012.8,3012.7,3.3192817]
[1765815929412,0.0002,3012.8,3012.5,0.58047529]
[1765815929925,0.0002,3012.8,3012.7,0.4624]
[1765815930229,0.0002,3012.8,3012.7,0.867904]
[1765815930385,0.0002,3012.8,3012.7,1.365504]
[1765815931400,0.0002,3012.8,3012.7,4.6847857]
[1765815931717,0.0002,3012.8,3012.7,5.26526099]
[1765815931900,0.0002,3012.8,3012.7,6.29212417]
[1765815936790,0.0002,3012.8,3012.7,6.31212417]
[1765815939512,0.0002,3012.8,3012.7,4.87975699]
[1765815939913,0.0002,3012.8,3012.7,5.26526099]
[1765815940693,0.0002,3012.8,3012.7,5.2984538]
[1765815940910,0.0002,3012.8,3012.7,5.3184538]
[1765815941237,0.0002,3012.8,3012.7,5.28526099]
[1765815941395,0.0002,3012.8,3012.7,6.92657598]
[1765815942553,0.0002,3012.8,3012.7,5.56107198]
[1765815942713,1.14107529,3012.8,3012.7,0.02]
[1765815942918,1.14107529,3012.8,3011.9,3.32011718]
[1765815943116,0.5606,3012.8,3012.3,3.31971927]
[1765815943362,0.4894,3012.8,3012.4,3.31958714]
[1765815943517,0.4894,3012.8,3012.1,3.31991337]
[1765815943855,0.0712,3012.7,3012.0,3.32002913]
[1765815944056,0.0712,3012.7,3012.0,3.32003714]
[1765815944256,0.0712,3012.7,3012.2,3.3197703]
[1765815944621,0.0712,3012.7,3011.7,3.8005113]
[1765815944622,0.0712,3012.7,3011.8,6.64054718]
[1765815945051,0.0712,3012.7,3011.8,7.12074718]
[1765815945246,0.0712,3012.7,3011.8,10.44102077]
[1765815945857,0.0712,3012.7,3011.8,7.12074718]
[1765815946033,3.39049283,3012.7,3011.8,7.12074718]
[1765815946543,3.39049283,3012.7,3012.6,0.002]
[1765815946739,0.0002,3012.8,3012.6,0.002]
[1765815946947,0.5562,3012.7,3012.6,0.002]
[1765815949153,0.0712,3012.7,3012.6,0.002]
[1765815949842,0.0002,3012.8,3012.6,0.002]
[1765815950046,0.0002,3012.8,3012.7,0.9602]
[1765815950358,0.0002,3012.8,3012.7,0.48]
[1765815950535,0.0002,3012.8,3012.7,0.9602]
[1765815951051,0.0002,3012.8,3012.7,4.2794817]
[1765815951260,0.0002,3012.8,3012.7,3.7992817]
[1765815951622,0.0004,3013.0,3012.7,7.1185634]
[1765815951821,0.0004,3013.0,3012.9,0.48]
[1765815952222,0.0004,3013.0,3012.9,0.9602]
[1765815952420,0.0004,3013.0,3012.9,1.44464117]
[1765815953056,0.0004,3013.0,3012.9,4.76370253]
[1765815953251,0.0004,3013.0,3012.6,0.002]
[1765815953252,0.0716,3013.0,3012.6,0.002]
[1765815953567,5.6537,3012.7,3012.6,0.002]
[1765815953736,6.36187172,3012.7,3012.6,0.002]
[1765815954066,6.65697172,3012.7,3012.6,0.002]
[1765815954424,10.681266,3012.7,3012.6,0.002]
[1765815954927,10.362475,3012.7,3012.6,0.002]
[1765815955127,13.6817567,3012.7,3012.6,0.002]
[1765815955655,14.0036487,3012.7,3012.6,0.002]
[1765815955825,14.62399971,3012.7,3012.6,0.002]
[1765815956439,14.62399971,3012.7,3012.5,1e-08]
[1765815956440,1.07267529,3012.6,3012.5,1e-08]
[1765815956639,0.58047529,3012.2,3011.5,0.002]
[1765815956849,7.19719338,3012.6,3011.5,0.002]
[1765815956850,8.86837729,3011.6,3011.5,0.002]
[1765815957156,10.73880637,3011.6,3011.5,0.002]
[1765815957362,11.22680637,3011.6,3011.5,0.002]
[1765815957557,8.13096437,3011.6,3011.5,0.002]
[1765815957755,12.05699837,3011.6,3011.5,0.002]
[1765815957942,4.64116937,3011.6,3011.5,0.002]
[1765815958457,0.7402,3011.6,3011.5,0.002]
[1765815958657,0.03987572,3011.7,3011.5,0.002]
[1765815958861,0.1869,3011.9,3011.5,0.002]
[1765815959033,0.80995101,3012.2,3011.5,0.002]
[1765815959361,1.11247529,3012.1,3011.5,0.002]
[1765815959558,4.43246108,3012.1,3011.5,0.002]
[1765815959858,0.532,3012.1,3011.5,0.66676498]
[1765815960446,0.532,3012.1,3011.5,1.14696498]
[1765815961248,0.532,3012.1,3011.6,3.32049408]
[1765815961453,4.34114292,3012.1,3011.5,3.32256033]
[1765815961762,0.0656,3011.6,3011.5,0.002]
[1765815962460,10.13788829,3011.6,3011.5,0.002]
[1765815962632,8.74932329,3011.6,3011.5,0.002]
[1765815962833,4.90960229,3011.6,3011.5,0.002]
[1765815963164,4.90960229,3011.6,3011.4,0.002]
[1765815963165,33.90107963,3011.5,3011.4,0.002]
[1765815963329,10.67150135,3011.5,3011.4,0.002]
[1765815963669,0.533,3011.6,3011.4,0.002]
[1765815964270,0.0963,3011.5,3011.4,0.002]
[1765815965364,0.5489,3011.5,3011.4,0.002]
[1765815966363,3.90938006,3011.5,3011.4,0.002]
[1765815966569,0.58877572,3011.5,3011.4,0.002]
[1765815967064,0.13617572,3011.5,3011.4,0.002]
[1765815967360,0.58877572,3011.5,3011.4,0.002]
[1765815967662,3.90938006,3011.5,3011.4,0.002]
[1765815967958,11.67994606,3011.5,3011.4,0.002]
[1765815968361,0.533,3011.6,3011.4,0.4729]
[1765815968570,0.533,3012.0,3011.4,0.002]
[1765815969438,0.03987572,3012.4,3011.5,0.4884]
[1765815970173,0.03987572,3012.4,3011.4,0.002]
[1765815970174,0.4562,3012.3,3011.4,0.002]
[1765815970579,0.4562,3012.3,3011.4,0.4904]
[1765815971077,0.533,3012.5,3012.2,0.6511]
[1765815971284,0.533,3012.5,3011.8,6.64054718]
[1765815971433,7.257771,3012.4,3011.7,3.32033558]
[1765815971640,23.519209,3012.3,3011.5,3.32058301]
[1765815971840,8.137028,3012.2,3011.4,0.002]
[1765815972040,0.4592,3011.5,3011.4,0.002]
[1765815972280,0.533,3011.6,3011.4,0.002]
[1765815972595,0.533,3011.6,3011.4,3.32271461]
[1765815972901,0.533,3012.1,3011.5,0.9593]
[1765815973080,0.533,3012.1,3011.5,2.05184438]
[1765815973401,0.9892,3012.1,3011.6,3.32049408]
[1765815973870,0.533,3012.1,3011.6,3.32049408]
[1765815974069,0.0943,3011.7,3011.4,0.002]
[1765815974263,0.0934,3011.5,3011.4,0.002]
[1765815974473,0.6264,3011.5,3011.4,0.002]
[1765815974894,1.0791,3011.5,3011.4,0.002]
[1765815975476,11.59984434,3011.5,3011.4,0.002]
[1765815975791,7.120431,3011.5,3011.4,0.002]
[1765815976092,18.69117806,3011.5,3011.4,0.002]
[1765815976468,19.27165335,3011.5,3011.4,0.002]
[1765815976666,7.45466035,3011.5,3011.4,0.002]
[1765815976886,5.02005535,3011.5,3011.4,0.002]
[1765815977101,7.17880335,3011.5,3011.4,0.002]
[1765815977499,0.533,3011.5,3011.4,0.002]
[1765815979194,1.0791,3011.5,3011.4,0.002]
[1765815979394,22.68250806,3011.5,3011.4,0.002]
[1765815979560,22.68350806,3011.5,3011.4,0.002]
[1765815979766,19.45177206,3011.5,3011.4,0.002]
[1765815980124,20.03224735,3011.5,3011.4,0.002]
[1765815980279,15.64010635,3011.5,3011.4,0.002]
[1765815980478,10.00260635,3011.5,3011.4,0.002]
[1765815981309,15.33807535,3011.5,3011.4,0.002]
[1765815981715,18.83907535,3011.5,3011.4,0.002]
[1765815982307,38.52205535,3011.5,3011.4,0.002]
[1765815982814,38.52205535,3011.5,3010.3,0.002]
[1765815982815,31.04117529,3011.4,3010.3,0.002]
[1765815983129,11.03275329,3010.4,3010.3,0.002]
[1765815983337,12.99654229,3010.4,3010.3,0.002]
[1765815983485,16.77455998,3010.4,3010.3,0.002]
[1765815984018,16.8144357,3010.4,3010.3,0.002]
[1765815984384,9.83307701,3010.4,3010.3,0.002]
[1765815984582,13.1548947,3010.4,3010.3,0.002]
[1765815985516,6.89677201,3010.4,3010.3,0.002]
[1765815985703,10.2185897,3010.4,3010.3,0.002]
[1765815985904,7.2615367,3010.4,3010.3,0.002]
[1765815986402,1.88325101,3010.4,3010.3,0.002]
[1765815986606,1.84337529,3010.4,3010.3,0.002]
[1765815986806,1.84337529,3010.4,3010.3,0.4729]
[1765815986807,0.533,3010.4,3010.3,0.4729]
[1765815987008,0.1846,3011.0,3010.3,0.99451928]
[1765815987211,0.533,3010.9,3010.3,0.9613]
[1765815987718,0.533,3010.9,3010.4,6.64363538]
[1765815987906,3.36152333,3011.5,3010.8,0.4709]
[1765815987907,0.001,3011.5,3010.8,0.4709]
[1765815988106,0.001,3011.5,3011.4,0.4709]
[1765815988646,0.001,3011.5,3011.4,1.364804]
[1765815989517,0.001,3011.5,3011.4,5.2659939]
[1765815989714,0.001,3011.5,3011.4,6.14269584]
[1765815990208,0.001,3011.5,3011.4,6.16269584]
[1765815991617,0.001,3011.5,3011.4,5.2589939]
[1765815992018,0.001,3011.5,3011.4,5.29220104]
[1765815992190,0.001,3011.5,3011.4,5.2589939]
[1765815992616,0.001,3011.5,3011.4,5.7919939]
[1765815992820,0.001,3011.5,3011.4,5.2874939]
[1765815993001,0.001,3011.5,3011.4,13.18623433]
[1765815993938,0.001,3012.8,3011.5,0.98597929]
[1765815994236,0.001,3012.8,3011.8,0.405504]
[1765815994527,0.001,3012.8,3012.0,0.405504]
[1765815994914,0.001,3012.8,3011.8,0.592104]
[1765815995124,0.001,3012.8,3011.9,0.16624793]
[1765815995330,1.0198,3012.7,3011.6,0.405504]
[1765815995503,0.533,3012.7,3011.8,0.405504]
[1765815995698,0.533,3012.7,3011.9,0.58047529]
[1765815995928,0.533,3012.7,3012.1,0.405504]
[1765815996343,0.533,3012.7,3012.1,0.895404]
[1765815997234,0.001,3012.8,3012.2,0.4899]
[1765815997655,0.001,3012.8,3012.3,6.63944494]
[1765815997802,0.4868,3012.7,3012.3,3.31972247]
[1765815998218,0.486,3012.7,3012.3,3.31972247]
[1765815998906,0.486,3012.7,3012.3,6.63944494]
[1765815999107,0.001,3012.8,3012.3,6.63944494]
[1765815999850,0.001,3012.8,3012.3,0.4899]
[1765816000009,0.001,3012.8,3012.1,6.63984336]
[1765816000608,0.001,3012.8,3012.2,0.4899]
[1765816000922,0.001,3012.8,3012.1,6.63984336]
[1765816001130,0.001,3012.8,3012.1,9.95978625]
[1765816001331,0.001,3012.8,3012.1,6.63984336]
[1765816001912,0.001,3012.8,3012.0,10.36566336]
[1765816002121,0.001,3012.7,3012.0,11.4512197]
[1765816002634,0.001,3012.7,3012.0,7.72566258]
[1765816003430,0.001,3012.7,3012.6,8.47196778]
[1765816003737,0.001,3012.7,3012.6,8.96186778]
[1765816003943,0.001,3012.7,3012.6,5.75205395]
[1765816004108,0.001,3012.7,3012.6,6.15755795]
[1765816006451,0.001,3013.5,3013.0,0.405504]
[1765816006613,0.001,3013.5,3013.3,8.65856778]
[1765816007042,0.001,3013.5,3013.3,9.14846778]
[1765816007352,0.001,3013.5,3013.3,10.11651456]
[1765816008011,0.001,3013.5,3013.3,5.33324285]
[1765816008212,0.001,3013.5,3013.3,6.26183305]
[1765816008531,0.001,3013.5,3013.3,5.64817156]
[1765816008846,0.001,3013.5,3013.3,3.31862078]
[1765816009211,0.001,3013.5,3013.3,4.27462078]
[1765816009538,0.001,3013.5,3013.3,3.31862078]
[1765816009919,0.001,3013.5,3013.2,3.3187284]
[1765816010122,0.001,3013.5,3013.2,6.63745931]
[1765816010752,0.001,3013.5,3013.3,0.956]
[1765816011239,0.001,3013.5,3013.3,1.361504]
[1765816012114,0.001,3013.5,3013.3,4.68012478]
[1765816012945,0.001,3013.5,3013.3,5.26060007]
[1765816014032,0.001,3013.5,3013.3,5.79260007]
[1765816014346,0.001,3013.5,3013.3,7.47242825]
[1765816015145,0.001,3013.5,3013.4,0.405504]
[1765816015457,0.001,3013.5,3013.4,1.893504]
[1765816016147,0.001,3013.6,3013.4,9.11100059]
[1765816016353,0.001,3013.6,3013.5,1.94197929]
[1765816016549,0.001,3013.6,3013.5,3.02106217]
[1765816017669,0.001,3013.6,3013.5,3.05424617]
[1765816017962,0.001,3013.6,3013.5,3.02106217]
[1765816018258,0.001,3013.6,3013.5,6.3394627]
[1765816019628,0.001,3013.6,3013.5,5.9339587]
[1765816020063,0.001,3013.6,3013.5,6.3726467]
[1765816020265,0.001,3013.6,3013.5,6.3394627]
[1765816020640,0.001,3013.6,3012.3,0.4899]
[1765816020641,5.73191,3013.5,3012.3,0.4899]
[1765816020841,0.5521,3013.6,3011.9,7.01988849]
[1765816020842,0.0685,3013.6,3012.4,0.4899]
[1765816021040,0.4868,3013.5,3012.9,3.3190356]
[1765816021264,0.001,3013.6,3013.5,0.4661]
[1765816021475,0.0002,3013.6,3013.5,3.78450053]
[1765816021760,0.0002,3013.6,3013.5,3.80870053]
[1765816022070,0.0002,3013.6,3013.5,5.26567982]
[1765816023544,0.0002,3013.6,3013.5,3.80870053]
[1765816023745,0.0543,3013.6,3013.4,3.31847443]
[1765816024031,0.0543,3013.6,3012.9,4.37050311]
[1765816024032,0.0543,3013.6,3013.0,0.405504]
[1765816024265,0.0543,3013.6,3013.0,0.407504]
[1765816024465,0.0002,3013.6,3013.1,6.63768212]
[1765816024784,0.0002,3013.6,3013.0,1.29825358]
[1765816024785,0.0002,3013.6,3013.0,3.32092604]
[1765816024789,3.81383797,3013.6,3013.0,3.32092604]
[1765816025266,0.4953,3013.5,3013.0,3.32092604]
[1765816025473,0.0541,3013.1,3013.0,0.002]
[1765816025840,0.545,3013.1,3013.0,0.002]
[1765816026766,0.0541,3013.1,3013.0,0.002]
[1765816026970,0.0002,3013.6,3013.0,0.9633]
[1765816027147,0.0002,3013.6,3013.1,0.405504]
[1765816027348,0.0002,3013.6,3013.5,0.4903]
[1765816028174,0.0002,3013.6,3013.5,1.366804]
[1765816028373,0.0002,3013.6,3013.5,0.89671678]
[1765816028548,0.0002,3013.6,3013.5,1.366804]
[1765816029166,0.0002,3013.6,3013.5,0.895804]
[1765816029465,0.0002,3013.6,3013.5,1.366804]
[1765816029769,0.0002,3013.6,3013.4,6.6370213]
[1765816029947,0.0002,3013.6,3013.0,1.05347529]
[1765816029948,0.0002,3013.6,3013.3,3.31858679]
[1765816030268,0.0002,3013.6,3013.3,6.63720757]
[1765816030938,0.0002,3013.6,3013.1,3.31884106]
[1765816031138,0.4819,3013.4,3013.1,3.31884106]
[1765816031339,0.0002,3013.6,3013.1,6.63768212]
[1765816032035,0.4955,3013.6,3013.1,6.63768212]
[1765816032236,0.0002,3013.6,3013.1,6.63768212]
[1765816032761,0.4955,3013.6,3013.1,6.63768212]
[1765816033177,0.4955,3013.6,3013.1,3.31884106]
[1765816033363,1.0275,3013.6,3013.1,3.31884106]
[1765816033672,0.0541,3013.2,3013.1,3.31884106]
[1765816034243,0.545,3013.2,3013.0,0.002]
[1765816034479,0.5322,3013.6,3013.0,0.002]
[1765816034662,0.0541,3013.1,3013.0,3.32095121]
[1765816034841,0.5322,3013.6,3013.2,3.31873091]
[1765816035177,0.5322,3013.6,3013.0,0.4923]
[1765816035178,0.5322,3013.6,3013.1,6.63768212]
[1765816035955,0.5322,3013.6,3013.1,3.31884106]
[1765816035956,1.0275,3013.6,3013.1,3.31884106]
[1765816036162,0.5322,3013.6,3013.1,3.31884106]
[1765816036342,1.0275,3013.6,3013.1,3.31884106]
[1765816036756,0.0541,3013.2,3013.1,3.31884106]
[1765816036971,0.5322,3013.6,3013.1,6.63768212]
[1765816037278,0.4953,3013.5,3013.0,0.002]
[1765816038852,0.0541,3013.1,3013.0,0.002]
[1765816039074,0.4953,3013.5,3013.0,0.002]
[1765816039272,0.0541,3013.1,3013.0,0.002]
[1765816039678,0.4953,3013.5,3013.0,0.002]
[1765816040489,0.0541,3013.1,3013.0,0.002]
[1765816040986,0.545,3013.1,3013.0,0.002]
[1765816041380,0.4909,3013.4,3013.0,0.002]
[1765816041547,0.0585,3013.1,3013.0,0.002]
[1765816042348,0.5451,3013.1,3013.0,0.002]
[1765816043182,13.11940606,3013.1,3013.0,0.002]
[1765816043482,0.5451,3013.1,3013.0,0.002]
[1765816044258,0.4866,3013.5,3013.0,0.002]
[1765816044468,0.4953,3013.4,3013.0,0.002]
[1765816044863,0.4945,3013.4,3013.0,0.002]
[1765816045288,3.37294106,3013.1,3013.0,0.002]
[1765816045586,0.5861,3013.1,3013.0,0.002]
[1765816049183,0.532,3013.1,3013.0,0.002]
[1765816049389,0.0002,3013.6,3013.1,0.405504]
[1765816049592,0.0002,3013.6,3013.5,7.77127728]
[1765816049769,0.0002,3013.6,3013.5,1.07077529]
[1765816050159,0.0002,3013.6,3013.5,1.55517529]
[1765816051285,0.0002,3013.6,3013.5,4.87357582]
[1765816051491,0.0002,3013.6,3013.5,4.38917582]
[1765816051688,0.0002,3013.6,3013.5,5.15994449]
[1765816052988,0.0002,3013.6,3013.5,5.63234449]
[1765816054183,0.0002,3013.6,3013.5,5.15994449]
[1765816054360,0.0002,3013.6,3013.5,5.63234449]
[1765816055885,0.0002,3013.6,3013.5,6.07103249]
[1765816056090,0.0002,3013.6,3013.5,6.03784849]
[1765816057498,0.0002,3013.6,3013.5,6.56984849]
[1765816057701,0.0002,3013.6,3013.5,6.03784849]
[1765816058122,0.0002,3013.6,3013.5,6.07103249]
[1765816058407,0.0002,3013.6,3013.5,6.03784849]
[1765816059506,0.0002,3013.6,3013.5,12.73760053]
[1765816059891,0.001,3014.3,3014.2,7.68573133]
[1765816060198,0.3964,3015.7,3014.6,0.4904]
[1765816060373,3.71239955,3015.7,3014.8,0.4904]
[1765816060975,0.5396,3014.9,3014.3,0.58047529]
[1765816061181,0.098,3014.6,3014.0,0.1945]
[1765816061376,0.098,3014.6,3013.6,0.1945]
[1765816061579,3.31729971,3014.5,3013.4,3.31851065]
[1765816061780,0.17617172,3014.4,3013.5,0.58047529]
[1765816062303,0.4924,3014.4,3013.5,0.58047529]
[1765816063399,0.4924,3014.4,3011.7,3.32235347]
[1765816063400,0.0092,3013.1,3011.7,3.32235347]
[1765816063578,0.0566,3012.9,3011.8,0.4724]
[1765816063905,0.2371,3012.9,3011.8,7.17215204]
[1765816064104,0.2371,3012.9,3011.9,0.4724]
[1765816065098,3.55623408,3012.9,3012.1,3.31994289]
[1765816065280,0.0304,3012.0,3011.7,0.002]
[1765816065481,0.533,3011.9,3011.7,0.002]
[1765816065805,0.451,3011.8,3011.7,0.002]
[1765816066006,0.5783,3011.8,3011.7,0.002]
[1765816066218,0.451,3011.8,3011.7,0.002]
[1765816066886,0.451,3011.8,3011.7,0.002]
[1765816067107,0.5783,3011.8,3011.7,0.002]
[1765816067422,9.29310759,3011.8,3011.7,0.002]
[1765816067912,8.20661359,3011.8,3011.7,0.002]
[1765816068126,1.1105,3011.8,3011.7,0.002]
[1765816068277,0.533,3011.8,3011.7,0.002]
[1765816069316,0.534,3012.3,3011.7,0.9648]
[1765816069521,0.534,3012.3,3011.7,0.002]
[1765816071419,0.534,3012.3,3011.8,0.99634822]
[1765816071913,0.534,3012.4,3011.9,0.4724]
[1765816072110,0.534,3012.4,3012.2,0.1945]
[1765816073191,0.534,3012.4,3011.8,0.99634822]
[1765816073412,0.0856,3012.3,3012.0,3.31996963]
[1765816073716,0.534,3012.4,3012.2,3.31983268]
[1765816074723,0.0896,3012.3,3011.7,0.002]
[1765816075030,0.534,3012.4,3012.2,3.31981973]
[1765816075328,0.534,3012.4,3011.8,3.32027359]
[1765816075638,0.534,3012.4,3011.7,0.002]
[1765816075639,10.894406,3012.3,3011.7,0.002]
[1765816075785,6.738168,3012.3,3011.7,0.002]
[1765816076123,0.0856,3011.8,3011.7,0.002]
[1765816076702,1.1069,3011.8,3011.7,0.002]
[1765816077419,17.47214859,3011.8,3011.7,0.002]
[1765816078821,7.51801959,3011.8,3011.7,0.002]